fUSD/lending_fUSD_20250617
["ID","MTS","AMOUNT","RATE_DAILY","PERIOD"]
[366345012,1750199465214,-490.0,0.00016602,2]
[366345013,1750199465225,-490.0,0.00016602,2]
[366345014,1750199465237,-490.0,0.00016602,2]
[366345015,1750199465246,-490.0,0.00016602,2]
[366345016,1750199465258,-396.37,0.00016602,2]
[366345017,1750199465268,-578.87,0.00016602,2]
[366345018,1750199465278,-895.01,0.00016602,2]
[366345019,1750199465288,-391.94188438,0.00016602,2]
[366345020,1750199465297,-490.0,0.00016602,2]
[366345021,1750199465307,-490.0,0.00016602,2]
[366345022,1750199465317,-490.0,0.00016602,2]
[366345023,1750199465326,-490.0,0.00016602,2]
[366345024,1750199465336,-490.0,0.00016602,2]
[366345025,1750199465346,-1046.15,0.00016602,2]
[366345026,1750199465355,-586.52,0.00016602,2]
[366345027,1750199465365,-490.0,0.00016602,2]
[366345028,1750199465375,-440.0,0.00016602,2]
[366345029,1750199465385,-971.28,0.00016602,2]
[366345030,1750199465395,-460.0,0.00016602,2]
[366345031,1750199465405,-490.0,0.00016602,2]
[366345032,1750199465415,-490.0,0.00016602,2]
[366345033,1750199465425,-490.0,0.00016602,2]
[366345034,1750199465435,-671.89,0.00016602,2]
[366345035,1750199465445,-151.0,0.00016602,2]
[366345036,1750199465455,-1045.64,0.00016602,2]
[366345037,1750199465465,-151.0,0.00016602,2]
[366345038,1750199465475,-450.0,0.00016602,2]
[366345039,1750199465486,-151.0,0.00016602,2]
[366345040,1750199465497,-936.29,0.00016602,2]
[366345041,1750199465507,-192.789024,0.00016602,2]
[366345042,1750199465517,-490.0,0.00016602,2]
[366345043,1750199465527,-490.0,0.00016602,2]
[366345044,1750199465538,-490.0,0.00016602,2]
[366345045,1750199465548,-490.0,0.00016602,2]
[366345046,1750199465558,-494.45,0.00016602,2]
[366345047,1750199465568,-490.0,0.00016602,2]
[366345048,1750199465578,-430.0,0.00016602,2]
[366345049,1750199465589,-490.0,0.00016602,2]
[366345050,1750199465599,-490.0,0.00016602,2]
[366345051,1750199465609,-648.31,0.00016602,2]
[366345052,1750199465619,-490.0,0.00016602,2]
[366345053,1750199465630,-490.0,0.00016602,2]
[366345054,1750199465640,-490.0,0.00016602,2]
[366345055,1750199465651,-490.0,0.00016602,2]
[366345056,1750199465661,-308.497493,0.00016602,2]
[366345057,1750199465672,-490.0,0.00016602,2]
[366345058,1750199465682,-490.0,0.00016602,2]
[366345059,1750199465693,-308.497493,0.00016602,2]
[366345060,1750199465704,-308.497493,0.00016602,2]
[366345061,1750199465715,-490.0,0.00016602,2]
[366345062,1750199465727,-308.497493,0.00016602,2]
[366345063,1750199465739,-490.0,0.00016602,2]
[366345064,1750199465750,-490.0,0.00016602,2]
[366345065,1750199465761,-308.497493,0.00016602,2]
[366345066,1750199465772,-308.497493,0.00016602,2]
[366345067,1750199465782,-308.497493,0.00016602,2]
[366345068,1750199465793,-490.0,0.00016602,2]
[366345069,1750199465804,-308.49749819,0.00016602,2]
[366345070,1750199465815,-490.0,0.00016602,2]
[366345071,1750199465825,-490.0,0.00016602,2]
[366345072,1750199465836,-485.71779172,0.00016602,2]
[366345073,1750199465847,-490.0,0.00016602,2]
[366345074,1750199465858,-490.0,0.00016602,2]
[366345075,1750199465869,-490.0,0.00016602,2]
[366345076,1750199465879,-490.0,0.00016602,2]
[366345077,1750199465891,-490.0,0.00016602,2]
[366345078,1750199465902,-490.0,0.00016602,2]
[366345079,1750199465913,-490.0,0.00016602,2]
[366345080,1750199465924,-490.0,0.00016602,2]
[366345081,1750199465936,-490.0,0.00016602,2]
[366345082,1750199465947,-290.8893062,0.00016602,2]
[366345083,1750199465959,-150.0,0.00016602,2]
[366345084,1750199465970,-490.0,0.00016602,2]
[366345085,1750199465982,-490.0,0.00016602,2]
[366345086,1750199465993,-490.0,0.00016602,2]
[366345087,1750199466003,-490.0,0.00016602,2]
[366345088,1750199466015,-490.0,0.00016602,2]
[366345089,1750199466027,-490.0,0.00016602,2]
[366345090,1750199466038,-490.0,0.00016602,2]
[366345091,1750199466049,-490.0,0.00016602,2]
[366345092,1750199466061,-674.77,0.00016602,2]
[366345093,1750199466072,-490.0,0.00016602,2]
[366345094,1750199466084,-27278.13398331,0.00016602,2]
[366345095,1750199466097,-460.0,0.00016602,2]
[366345096,1750199466109,-490.0,0.00016602,2]
[366345097,1750199466119,-490.0,0.00016602,2]
[366345098,1750199466129,-490.0,0.00016602,2]
[366345099,1750199466140,-490.0,0.00016602,2]
[366345100,1750199466151,-490.0,0.00016602,2]
[366345101,1750199466163,-686.19,0.00016602,2]
[366345102,1750199466175,-490.0,0.00016602,2]
[366345103,1750199466190,-490.0,0.00016602,2]
[366345104,1750199466202,-490.0,0.00016602,2]
[366345105,1750199466212,-490.0,0.00016602,2]
[366345106,1750199466222,-490.0,0.00016602,2]
[366345107,1750199466233,-820.36,0.00016602,2]
[366345108,1750199466243,-490.0,0.00016602,2]
[366345109,1750199466254,-490.0,0.00016602,2]
[366345110,1750199466265,-150.0,0.00016602,2]
[366345111,1750199466276,-263.35980996,0.00016602,2]
[366345112,1750199466286,-878.21,0.00016602,2]
[366345113,1750199466297,-300.0,0.00016602,2]
[366345114,1750199466308,-490.0,0.00016602,2]
[366345115,1750199466318,-490.0,0.00016602,2]
[366345116,1750199466328,-490.0,0.00016602,2]
[366345117,1750199466339,-490.0,0.00016602,2]
[366345118,1750199466349,-3560.3883268,0.00016602,2]
[366345119,1750199466360,-1100.52,0.00016602,2]
[366345120,1750199466370,-490.0,0.00016602,2]
[366345121,1750199466381,-460.0,0.00016602,2]
[366345122,1750199466391,-490.0,0.00016602,2]
[366345123,1750199466402,-490.0,0.00016602,2]
[366345124,1750199466416,-490.0,0.00016602,2]
[366345125,1750199466428,-490.0,0.00016602,2]
[366345126,1750199466440,-821.65,0.00016602,2]
[366345127,1750199466452,-490.0,0.00016602,2]
[366345128,1750199466463,-913.37,0.00016602,2]
[366345129,1750199466473,-490.0,0.00016602,2]
[366345130,1750199466484,-490.0,0.00016602,2]
[366345131,1750199466495,-490.0,0.00016602,2]
[366345132,1750199466505,-490.0,0.00016602,2]
[366345133,1750199466516,-490.0,0.00016602,2]
[366345134,1750199466527,-490.0,0.00016602,2]
[366345135,1750199466537,-490.0,0.00016602,2]
[366345136,1750199466548,-490.0,0.00016602,2]
[366345137,1750199466559,-601.65,0.00016602,2]
[366345138,1750199466569,-245.0389415,0.00016602,2]
[366345139,1750199466580,-490.0,0.00016602,2]
[366345140,1750199466591,-490.0,0.00016602,2]
[366345141,1750199466602,-887.68,0.00016602,2]
[366345142,1750199466612,-493.36,0.00016602,2]
[366345143,1750199466623,-597.46192633,0.00016602,2]
[366345144,1750199466635,-490.0,0.00016602,2]
[366345145,1750199466645,-460.0,0.00016602,2]
[366345146,1750199466656,-490.0,0.00016602,2]
[366345147,1750199466669,-490.0,0.00016602,2]
[366345148,1750199466680,-490.0,0.00016602,2]
[366345149,1750199466691,-490.0,0.00016602,2]
[366345150,1750199466702,-490.0,0.00016602,2]
[366345151,1750199466714,-490.0,0.00016602,2]
[366345152,1750199466725,-490.0,0.00016602,2]
[366345153,1750199466737,-490.0,0.00016602,2]
[366345154,1750199466747,-490.0,0.00016602,2]
[366345155,1750199466759,-490.0,0.00016602,2]
[366345156,1750199466771,-490.0,0.00016602,2]
[366345157,1750199466782,-490.0,0.00016602,2]
[366345158,1750199466795,-490.0,0.00016602,2]
[366345159,1750199466807,-1019.9,0.00016602,2]
[366345160,1750199466818,-703.39,0.00016602,2]
[366345161,1750199466829,-490.0,0.00016602,2]
[366345162,1750199466841,-490.0,0.00016602,2]
[366345163,1750199466852,-490.0,0.00016602,2]
[366345164,1750199466864,-490.0,0.00016602,2]
[366345165,1750199466874,-1295.71,0.00016602,2]
[366345166,1750199466885,-490.0,0.00016602,2]
[366345167,1750199466895,-2389.02,0.00016602,2]
[366345168,1750199466906,-490.0,0.00016602,2]
[366345169,1750199466917,-490.0,0.00016602,2]
[366345170,1750199466927,-490.0,0.00016602,2]
[366345171,1750199466938,-460.0,0.00016602,2]
[366345172,1750199466949,-700.34,0.00016602,2]
[366345173,1750199466959,-430.0,0.00016602,2]
[366345174,1750199466970,-490.0,0.00016602,2]
[366345175,1750199466981,-490.0,0.00016602,2]
[366345176,1750199466991,-380.0,0.00016602,2]
[366345177,1750199467003,-490.0,0.00016602,2]
[366345178,1750199467014,-490.0,0.00016602,2]
[366345179,1750199467025,-490.0,0.00016602,2]
[366345180,1750199467036,-490.0,0.00016602,2]
[366345181,1750199467047,-427.24254489,0.00016602,2]
[366345182,1750199467061,-1767.07,0.00016602,2]
[366345183,1750199467071,-490.0,0.00016602,2]
[366345184,1750199467082,-490.0,0.00016602,2]
[366345185,1750199467094,-490.0,0.00016602,2]
[366345186,1750199467107,-490.0,0.00016602,2]
[366345187,1750199467119,-490.0,0.00016602,2]
[366345188,1750199467130,-490.0,0.00016602,2]
[366345189,1750199467142,-490.0,0.00016602,2]
[366345190,1750199467154,-490.0,0.00016602,2]
[366345191,1750199467166,-688.11,0.00016602,2]
[366345192,1750199467176,-490.0,0.00016602,2]
[366345193,1750199467192,-731.34,0.00016602,2]
[366345194,1750199467204,-490.0,0.00016602,2]
[366345195,1750199467215,-490.0,0.00016602,2]
[366345196,1750199467227,-1287.19,0.00016602,2]
[366345197,1750199467238,-430.0,0.00016602,2]
[366345198,1750199467249,-608.4,0.00016602,2]
[366345199,1750199467259,-386.76359595,0.00016602,2]
[366345200,1750199467270,-1372.17,0.00016602,2]
[366345201,1750199467281,-596.19,0.00016602,2]
[366345202,1750199467290,-490.0,0.00016602,2]
[366345203,1750199467301,-460.0,0.00016602,2]
[366345204,1750199467311,-1713.2,0.00016602,2]
[366345205,1750199467321,-562.43,0.00016602,2]
[366345206,1750199467332,-1049.43,0.00016602,2]
[366345207,1750199467343,-430.0,0.00016602,2]
[366345208,1750199467353,-460.0,0.00016602,2]
[366345209,1750199467363,-2260.84,0.00016602,2]
[366345210,1750199467374,-639.88,0.00016602,2]
[366345211,1750199467384,-490.0,0.00016602,2]
[366345212,1750199467394,-490.0,0.00016602,2]
[366345213,1750199467405,-490.0,0.00016602,2]
[366345214,1750199467416,-490.0,0.00016602,2]
[366345215,1750199467427,-1030.78,0.00016602,2]
[366345216,1750199467439,-547.39,0.00016602,2]
[366345217,1750199467449,-490.0,0.00016602,2]
[366345218,1750199467460,-1063.09,0.00016602,2]
[366345219,1750199467471,-490.0,0.00016602,2]
[366345220,1750199467481,-490.0,0.00016602,2]
[366345221,1750199467492,-490.0,0.00016602,2]
[366345222,1750199467502,-490.0,0.00016602,2]
[366345223,1750199467513,-1738.32,0.00016602,2]
[366345224,1750199467524,-151.0,0.00016602,2]
[366345225,1750199467535,-490.0,0.00016602,2]
[366345226,1750199467546,-490.0,0.00016602,2]
[366345227,1750199467557,-151.0,0.00016602,2]
[366345228,1750199467567,-296.36,0.00016602,2]
[366345229,1750199467578,-1375.39,0.00016602,2]
[366345230,1750199467589,-490.0,0.00016602,2]
[366345231,1750199467601,-490.0,0.00016602,2]
[366345232,1750199467612,-298.40549294,0.00016602,2]
[366345233,1750199467623,-490.0,0.00016602,2]
[366345234,1750199467634,-490.0,0.00016602,2]
[366345235,1750199467644,-490.0,0.00016602,2]
[366345236,1750199467654,-1199.37,0.00016602,2]
[366345237,1750199467665,-490.0,0.00016602,2]
[366345238,1750199467676,-490.0,0.00016602,2]
[366345239,1750199467687,-490.0,0.00016602,2]
[366345240,1750199467697,-490.0,0.00016602,2]
[366345241,1750199467708,-490.0,0.00016602,2]
[366345242,1750199467719,-490.0,0.00016602,2]
[366345243,1750199467729,-490.0,0.00016602,2]
[366345244,1750199467740,-490.0,0.00016602,2]
[366345245,1750199467750,-665.57,0.00016602,2]
[366345246,1750199467761,-1503.4,0.00016602,2]
[366345247,1750199467771,-1000.0,0.00016602,2]
[366345248,1750199467781,-226.20346779,0.00016602,2]
[366345249,1750199467791,-490.0,0.00016602,2]
[366345250,1750199467802,-636.04,0.00016602,2]
[366345251,1750199467813,-810.81,0.00016602,2]
[366345252,1750199467823,-490.0,0.00016602,2]
[366345253,1750199467833,-490.0,0.00016602,2]
[366345254,1750199467844,-490.0,0.00016602,2]
[366345255,1750199467855,-490.0,0.00016602,2]
[366345256,1750199467866,-855.7,0.00016602,2]
[366345257,1750199467876,-968.58,0.00016602,2]
[366345258,1750199467886,-797.14,0.00016602,2]
[366345259,1750199467897,-563.76,0.00016602,2]
[366345260,1750199467907,-490.0,0.00016602,2]
[366345261,1750199467917,-490.0,0.00016602,2]
[366345262,1750199467928,-490.0,0.00016602,2]
[366345263,1750199467938,-1501.47,0.00016602,2]
[366345264,1750199467948,-1771.46,0.00016602,2]
[366345265,1750199467959,-490.0,0.00016602,2]
[366345266,1750199467969,-430.0,0.00016602,2]
[366345267,1750199467979,-460.0,0.00016602,2]
[366345268,1750199467990,-490.0,0.00016602,2]
[366345269,1750199468000,-490.0,0.00016602,2]
[366345270,1750199468011,-490.0,0.00016602,2]
[366345271,1750199468021,-1409.69,0.00016602,2]
[366345272,1750199468032,-657.07,0.00016602,2]
[366345273,1750199468042,-490.0,0.00016602,2]
[366345274,1750199468053,-490.0,0.00016602,2]
[366345275,1750199468063,-1294.55,0.00016602,2]
[366345276,1750199468074,-2328.35,0.00016602,2]
[366345277,1750199468085,-612.86,0.00016602,2]
[366345278,1750199468096,-490.0,0.00016602,2]
[366345279,1750199468107,-490.0,0.00016602,2]
[366345280,1750199468463,-490.0,0.00016602,2]
[366345281,1750199468480,-1307.77,0.00016602,2]
[366345282,1750199468491,-591.21,0.00016602,2]
[366345283,1750199468500,-490.0,0.00016602,2]
[366345284,1750199468510,-1816.136209,0.00016602,2]
[366345285,1750199468520,-1816.136209,0.00016602,2]
[366345286,1750199468531,-490.0,0.00016602,2]
[366345287,1750199468540,-958.82,0.00016602,2]
[366345288,1750199468550,-97.82275134,0.00016602,2]
[366345289,1750199469197,-392.17724866,0.00016602,2]
[366345290,1750199469207,-730.88,0.00016602,2]
[366345291,1750199469217,-490.0,0.00016602,2]
[366345292,1750199469227,-490.0,0.00016602,2]
[366345293,1750199469237,-629.4291514,0.00016602,2]
[366345294,1750199469249,-325.9608486,0.00016602,2]
[366345295,1750199469262,-490.0,0.00016602,2]
[366345296,1750199469272,-41.18289535,0.00016602,2]
[366345297,1750199469303,-490.0,0.00016602,2]
[366345298,1750199469314,-1553.71710465,0.00016602,2]
[366345299,1750199469323,-490.0,0.00016602,2]
[366345300,1750199469333,-460.0,0.00016602,2]
[366345301,1750199469343,-490.0,0.00016602,2]
[366345302,1750199469353,-874.5,0.00016602,2]
[366345303,1750199469362,-490.0,0.00016602,2]
[366345304,1750199469372,-490.0,0.00016602,2]
[366345305,1750199469382,-427.38,0.00016602,2]
[366345306,1750199469391,-735.25,0.00016602,2]
[366345307,1750199469401,-490.0,0.00016602,2]
[366345308,1750199469410,-795.0,0.00016602,2]
[366345309,1750199469632,-652.19167535,0.00016602,2]
[366345310,1750199515792,788.0,0.0002465,120]
[366345311,1750199531798,200.0,0.00013605,2]
[366345312,1750199778535,200.0,0.00015261,7]
[366345313,1750199892888,200.0,0.00016474,5]
[366345314,1750200064212,944.0,0.0002465,120]
[366345315,1750200123179,206.0,0.0002465,120]
[366345316,1750200251711,200.0,0.00012365,2]
[366345317,1750200253230,200.0,0.00015595,5]
[366345318,1750200253473,200.0,0.00016402,6]
[366345326,1750200521920,205.0,0.00012365,2]
[366345334,1750200611909,200.0,0.00012173,2]
[366345335,1750200612620,200.0,0.00013027,3]
[366345336,1750200613176,200.0,0.00014735,5]
[366345337,1750200613468,200.0,0.00015589,6]
[366345338,1750200613737,200.0,0.00016443,7]
[366345339,1750200632246,-226.19,0.00013699,2]
[366345340,1750200632256,-200.0,0.00013881,4]
[366345341,1750200632265,-300.0,0.00014814,2]
[366345342,1750200632275,-552.18773816,0.00014814,2]
[366345343,1750200632329,-647.81226184,0.00014814,2]
[366345344,1750200632339,-9917.18,0.00014815,2]
[366345345,1750200632350,-150.0,0.00014918,2]
[366345346,1750200632360,-150.0,0.00014918,2]
[366345347,1750200632371,-150.0,0.00014918,2]
[366345348,1750200632383,-150.0,0.00014918,2]
[366345349,1750200632394,-150.0,0.00014918,2]
[366345350,1750200632404,-150.0,0.00014918,2]
[366345351,1750200632416,-150.0,0.00014918,2]
[366345353,1750200632425,-150.0,0.00014961,2]
[366345355,1750200632434,-211.23,0.00014994,2]
[366345357,1750200632444,-150.0,0.00015005,2]
[366345359,1750200632453,-150.0,0.00015045,2]
[366345360,1750200632462,-150.0,0.00015049,2]
[366345362,1750200632471,-150.0,0.00015092,2]
[366345364,1750200632480,-150.0,0.00015102,2]
[366345366,1750200632490,-150.0,0.00015136,2]
[366345368,1750200632499,-150.0,0.00015173,2]
[366345370,1750200632509,-150.0,0.0001518,2]
[366345372,1750200632518,-300.0,0.00015209,2]
[366345374,1750200632527,-150.0,0.00015223,2]
[366345376,1750200632537,-354.64,0.00015261,2]
[366345378,1750200632546,-150.0,0.00015267,2]
[366345380,1750200632556,-150.0,0.00015286,2]
[366345382,1750200632565,-150.0,0.000153,2]
[366345384,1750200632575,-1000.0,0.00015305,2]
[366345386,1750200632585,-150.0,0.0001531,2]
[366345388,1750200632595,-150.0,0.00015332,2]
[366345390,1750200632604,-150.0,0.00015354,2]
[366345392,1750200632614,-150.0,0.00015398,2]
[366345394,1750200632624,-150.0,0.00015428,2]
[366345396,1750200632636,-150.0,0.00015441,2]
[366345398,1750200632648,-150.0,0.0001547,2]
[366345400,1750200632657,-150.0,0.0001547,2]
[366345402,1750200632667,-150.0,0.00015485,2]
[366345404,1750200632676,-2590.000001,0.00015509,2]
[366345407,1750200632686,-4020.47345179,0.0001551,2]
[366345409,1750200632698,-277.215,0.0001551,2]
[366345441,1750200637986,-279.94,0.0001551,2]
[366345442,1750200638156,-556.12142121,0.0001551,2]
[366345443,1750200638255,-1102.91812695,0.0001551,2]
[366345444,1750200638267,-1254.34857907,0.0001551,2]
[366345568,1750200640401,-436.5,0.0001551,2]
[366345569,1750200640532,-15972.48342098,0.0001551,2]
[366345570,1750200640543,-150.0,0.00015528,2]
[366345571,1750200640553,-150.0,0.00015555,2]
[366345572,1750200640562,-150.0,0.00015572,2]
[366345573,1750200640572,-150.0,0.00015616,2]
[366345574,1750200640581,-1957.856,0.00015641,2]
[366345575,1750200640591,-207.4,0.00015641,2]
[366345576,1750200640601,-150.0,0.00015654,2]
[366345577,1750200640611,-150.0,0.00015659,2]
[366345578,1750200640621,-166.0,0.00015662,2]
[366345579,1750200640630,-150.0,0.00015683,2]
[366345580,1750200640640,-2030.296672,0.00015696,2]
[366345581,1750200640652,-150.0,0.00015703,2]
[366345582,1750200640662,-150.0,0.00015747,2]
[366345583,1750200640672,-150.0,0.00015747,2]
[366345584,1750200640681,-2105.41764886,0.00015751,2]
[366345585,1750200640690,-150.0,0.0001579,2]
[366345586,1750200640699,-2183.31810187,0.00015806,2]
[366345587,1750200640709,-150.0,0.0001581,2]
[366345588,1750200640720,-150.0,0.00015834,2]
[366345589,1750200640730,-150.0,0.00015839,2]
[366345590,1750200640739,-2264.10087164,0.00015861,2]
[366345591,1750200640749,-354.83,0.0001587,2]
[366345592,1750200640759,-150.0,0.00015877,2]
[366345593,1750200640768,-451.29,0.000159,2]
[366345594,1750200640779,-2347.87260389,0.00015916,2]
[366345595,1750200640790,-150.0,0.00015921,2]
[366345596,1750200640800,-150.0,0.00015938,2]
[366345597,1750200640811,-166.21,0.00015964,2]
[366345598,1750200640820,-150.0,0.00015965,2]
[366345599,1750200640831,-823.85898355,0.00015971,2]
[366345600,1750200640840,-461.43,0.00016,2]
[366345601,1750200640850,-451.29,0.00016,2]
[366345602,1750200640862,-150.0,0.00016008,2]
[366345603,1750200640873,-150.0,0.00016023,2]
[366345604,1750200640883,-150.0,0.00016023,2]
[366345605,1750200640893,-150.0,0.00016052,2]
[366345606,1750200640903,-150.0,0.00016065,2]
[366345607,1750200640913,-150.0,0.00016096,2]
[366345608,1750200640924,-151.0,0.00016106,2]
[366345609,1750200640934,-451.35876653,0.00016106,2]
[366345610,1750200640948,-2803.71,0.00016116,2]
[366345611,1750200640959,-999.99,0.00016116,2]
[366345612,1750200640970,-80091.3,0.00016116,2]
[366345613,1750200640980,-490.16,0.00016116,2]
[366345614,1750200640990,-299.99,0.00016116,4]
[366345615,1750200641001,-1482.04,0.00016116,2]
[366345616,1750200641011,-808.83,0.00016116,2]
[366345617,1750200641021,-150.99,0.00016116,2]
[366345618,1750200641031,-9999.99,0.00016116,2]
[366345619,1750200641040,-150.0,0.00016139,2]
[366345620,1750200641051,-150.0,0.00016145,2]
[366345621,1750200641062,-150.0,0.00016161,2]
[366345622,1750200641072,-150.0,0.00016183,2]
[366345623,1750200641082,-150.0,0.00016193,2]
[366345624,1750200641092,-451.29,0.000162,2]
[366345625,1750200641102,-150.0,0.00016207,2]
[366345626,1750200641113,-420.0,0.00016216,2]
[366345627,1750200641123,-150.0,0.00016226,2]
[366345628,1750200641134,-846.370593,0.00016269,2]
[366345629,1750200641144,-150.0,0.0001627,2]
[366345630,1750200641155,-1680.0,0.00016296,2]
[366345631,1750200641165,-50420.24190271,0.000163,2]
[366345632,1750200641175,-1165.65,0.0001631,2]
[366345633,1750200641186,-150.0,0.00016314,2]
[366345634,1750200641196,-150.0,0.0001632,2]
[366345635,1750200641206,-150.0,0.00016323,2]
[366345636,1750200641226,-150.0,0.00016336,2]
[366345637,1750200641236,-201.04838082,0.00016338,2]
[366345638,1750200641247,-687.66310732,0.00016338,2]
[366345639,1750200641258,-3022.94764977,0.00016338,2]
[366345640,1750200641268,-181.42077174,0.00016338,2]
[366345641,1750200641278,-272.2876483,0.00016345,2]
[366345642,1750200641289,-150.0,0.00016347,2]
[366345643,1750200641299,-150.0,0.00016351,2]
[366345644,1750200641310,-150.0,0.00016352,2]
[366345645,1750200641321,-1077.253,0.00016353,2]
[366345646,1750200641332,-1000.0,0.00016355,2]
[366345647,1750200641342,-150.0,0.00016356,2]
[366345648,1750200641353,-150.0,0.00016357,2]
[366345649,1750200641364,-1000.0,0.00016358,2]
[366345650,1750200641374,-150.0,0.00016361,2]
[366345651,1750200641384,-150.0,0.00016361,2]
[366345652,1750200641395,-150.0,0.00016363,2]
[366345653,1750200641405,-200.0,0.00016379,2]
[366345654,1750200641415,-150.0,0.0001638,2]
[366345655,1750200641425,-150.0,0.00016391,2]
[366345656,1750200641435,-3022.94764977,0.00016393,2]
[366345657,1750200641445,-150.0,0.00016398,2]
[366345658,1750200641456,-451.29,0.000164,2]
[366345659,1750200641466,-150.0,0.00016401,2]
[366345660,1750200641476,-1000.0,0.00016412,2]
[366345661,1750200641486,-150.0,0.00016415,2]
[366345662,1750200641497,-205.21004688,0.00016424,2]
[366345663,1750200641507,-150.0,0.00016425,2]
[366345664,1750200641517,-1726.15247777,0.00016428,2]
[366345665,1750200641527,-453.24667931,0.00016428,2]
[366345666,1750200641538,-1000.0,0.00016431,2]
[366345667,1750200641548,-833.87704394,0.00016437,2]
[366345668,1750200641559,-186.55,0.00016437,2]
[366345669,1750200641569,-639.0,0.00016438,2]
[366345670,1750200641579,-433.7217807,0.00016438,2]
[366345671,1750200641589,-490.0,0.00016438,2]
[366345672,1750200641599,-480.0,0.00016438,2]
[366345673,1750200641609,-471.86225671,0.00016438,2]
[366345674,1750200641620,-490.0,0.00016438,2]
[366345675,1750200641630,-490.0,0.00016438,2]
[366345676,1750200641640,-490.0,0.00016438,2]
[366345677,1750200641650,-490.0,0.00016438,2]
[366345678,1750200641660,-490.0,0.00016438,2]
[366345679,1750200641671,-490.0,0.00016438,2]
[366345680,1750200641681,-490.0,0.00016438,2]
[366345681,1750200641691,-490.0,0.00016438,2]
[366345682,1750200641701,-490.0,0.00016438,2]
[366345683,1750200641710,-310.82679177,0.00016438,2]
[366345684,1750200641720,-270.59630113,0.00016438,2]
[366345685,1750200641730,-461.92715937,0.00016438,2]
[366345686,1750200641740,-460.9684048,0.00016438,2]
[366345687,1750200641750,-490.0,0.00016438,2]
[366345688,1750200641760,-490.0,0.00016438,2]
[366345689,1750200641771,-490.0,0.00016438,2]
[366345690,1750200641781,-490.0,0.00016438,2]
[366345691,1750200641793,-490.0,0.00016438,2]
[366345692,1750200641803,-490.0,0.00016438,2]
[366345693,1750200641813,-490.0,0.00016438,2]
[366345694,1750200641823,-499.37550327,0.00016438,2]
[366345695,1750200641834,-490.0,0.00016438,2]
[366345696,1750200641844,-490.0,0.00016438,2]
[366345697,1750200641855,-490.0,0.00016438,2]
[366345698,1750200641865,-490.0,0.00016438,2]
[366345699,1750200641875,-703.95,0.00016438,2]
[366345700,1750200641885,-490.0,0.00016438,2]
[366345701,1750200641895,-2469.9885,0.00016438,2]
[366345702,1750200641904,-490.0,0.00016438,2]
[366345703,1750200641914,-490.0,0.00016438,2]
[366345704,1750200641924,-490.0,0.00016438,2]
[366345705,1750200641934,-590.28,0.00016438,2]
[366345706,1750200641944,-490.0,0.00016438,2]
[366345707,1750200641954,-490.0,0.00016438,2]
[366345708,1750200641964,-490.0,0.00016438,2]